[Event "*** SCC Grand Prix: Titled Tuesday Blitz"]
[Site "Chess.com"]
[Date "2020.06.23"]
[Round "1"]
[White "MateSchmate"]
[Black "Sanan_Sjugirov"]
[Result "0-1"]
[WhiteElo "2441"]
[BlackElo "2855"]
[TimeControl "180+1"]
[EndTime "10:07:39 PDT"]
[Termination "Sanan_Sjugirov won by checkmate"]

1. e4 {[%clk 0:03:00.9]} 1... c6 {[%clk 0:02:59.4]} 2. Bc4 {[%clk 0:03:00.5]}
2... d5 {[%clk 0:02:58.7]} 3. Bb3 {[%clk 0:03:01.4]} 3... e6 {[%clk 0:02:38.7]}
4. Nc3 {[%clk 0:02:55.8]} 4... Nf6 {[%clk 0:02:37.8]} 5. e5 {[%clk 0:02:55.2]}
5... Nfd7 {[%clk 0:02:37.6]} 6. f4 {[%clk 0:02:55]} 6... c5 {[%clk 0:02:34.6]}
7. d3 {[%clk 0:02:53.8]} 7... Nc6 {[%clk 0:02:27.6]} 8. Nf3 {[%clk 0:02:52.2]}
8... b5 {[%clk 0:02:22]} 9. a4 {[%clk 0:02:45]} 9... b4 {[%clk 0:02:17.8]} 10.
Ne2 {[%clk 0:02:43.3]} 10... Be7 {[%clk 0:02:13]} 11. c3 {[%clk 0:02:43.2]}
11... bxc3 {[%clk 0:02:03.1]} 12. bxc3 {[%clk 0:02:44.1]} 12... Rb8 {[%clk
0:02:00.2]} 13. Bc2 {[%clk 0:02:42.5]} 13... Ba6 {[%clk 0:01:57.7]} 14. O-O
{[%clk 0:02:38.5]} 14... O-O {[%clk 0:01:56.1]} 15. Kh1 {[%clk 0:02:19.1]} 15...
g6 {[%clk 0:01:52.6]} 16. g4 {[%clk 0:02:16.1]} 16... d4 {[%clk 0:01:38.8]} 17.
c4 {[%clk 0:02:14.3]} 17... Bb7 {[%clk 0:01:30]} 18. Kg1 {[%clk 0:02:07.1]}
18... Nb4 {[%clk 0:01:27.8]} 19. Ng3 {[%clk 0:02:03.5]} 19... a5 {[%clk
0:01:04.3]} 20. Qd2 {[%clk 0:01:59.1]} 20... f6 {[%clk 0:00:53.5]} 21. exf6
{[%clk 0:01:49.8]} 21... Bxf6 {[%clk 0:00:53.1]} 22. Bd1 {[%clk 0:01:40.2]}
22... e5 {[%clk 0:00:47.1]} 23. f5 {[%clk 0:01:34.4]} 23... gxf5 {[%clk
0:00:41.7]} 24. Nxf5 {[%clk 0:01:30.8]} 24... e4 {[%clk 0:00:40.5]} 25. dxe4
{[%clk 0:01:24.4]} 25... Bxe4 {[%clk 0:00:39.5]} 26. Ng5 {[%clk 0:01:24]} 26...
Bxf5 {[%clk 0:00:27.6]} 27. Rxf5 {[%clk 0:01:16.9]} 27... Qe7 {[%clk 0:00:26.7]}
28. Ra3 {[%clk 0:01:04]} 28... Rbe8 {[%clk 0:00:16.9]} 29. Nf3 {[%clk
0:00:50.9]} 29... Bg7 {[%clk 0:00:12.5]} 30. Rxf8+ {[%clk 0:00:34.5]} 30... Rxf8
{[%clk 0:00:13.4]} 31. Qg5 {[%clk 0:00:28]} 31... Qf7 {[%clk 0:00:12.9]} 32. Kg2
{[%clk 0:00:22.3]} 32... Kh8 {[%clk 0:00:09.4]} 33. Be2 {[%clk 0:00:18.3]} 33...
Qe6 {[%clk 0:00:07.5]} 34. Bf1 {[%clk 0:00:15.8]} 34... Nf6 {[%clk 0:00:07.5]}
35. Qf5 {[%clk 0:00:15]} 35... Qc6 {[%clk 0:00:06.8]} 36. Kg1 {[%clk 0:00:12.9]}
36... Ne4 {[%clk 0:00:04.8]} 37. Qh5 {[%clk 0:00:10.9]} 37... Nc3 {[%clk
0:00:05]} 38. Ng5 {[%clk 0:00:09.5]} 38... h6 {[%clk 0:00:05.4]} 39. Nf7+ {[%clk
0:00:09.1]} 39... Kg8 {[%clk 0:00:05.4]} 40. Bg2 {[%clk 0:00:07.7]} 40... Qf6
{[%clk 0:00:04.7]} 41. Nxh6+ {[%clk 0:00:06.4]} 41... Bxh6 {[%clk 0:00:05.1]}
42. Bxh6 {[%clk 0:00:05.8]} 42... Qf2+ {[%clk 0:00:05]} 43. Kh1 {[%clk
0:00:06.1]} 43... Qe1+ {[%clk 0:00:05.6]} 44. Bf1 {[%clk 0:00:06.6]} 44... Qxf1#
{[%clk 0:00:06]} 0-1

[Event "*** SCC Grand Prix: Titled Tuesday Blitz"]
[Site "Chess.com"]
[Date "2020.06.23"]
[Round "1"]
[White "simplerXiao"]
[Black "Gajuchess"]
[Result "0-1"]
[WhiteElo "2390"]
[BlackElo "2774"]
[TimeControl "180+1"]
[EndTime "10:07:39 PDT"]
[Termination "Gajuchess won by checkmate"]

1. Nf3 {[%clk 0:02:02.4]} 1... d5 {[%clk 0:02:59.2]} 2. g3 {[%clk 0:02:00.8]}
2... Nf6 {[%clk 0:02:59.1]} 3. Bg2 {[%clk 0:02:00.8]} 3... Nbd7 {[%clk
0:02:57.7]} 4. O-O {[%clk 0:01:57.9]} 4... e5 {[%clk 0:02:57]} 5. c4 {[%clk
0:01:57.9]} 5... dxc4 {[%clk 0:02:57.2]} 6. Na3 {[%clk 0:01:57.5]} 6... Bxa3
{[%clk 0:02:50.4]} 7. bxa3 {[%clk 0:01:57.2]} 7... O-O {[%clk 0:02:51.3]} 8. Qc2
{[%clk 0:01:54.6]} 8... Qe7 {[%clk 0:02:41]} 9. Qxc4 {[%clk 0:01:51.1]} 9... c6
{[%clk 0:02:30.3]} 10. Rb1 {[%clk 0:01:44.5]} 10... Re8 {[%clk 0:02:28.5]} 11.
a4 {[%clk 0:01:42]} 11... Nb6 {[%clk 0:02:24.9]} 12. Qc2 {[%clk 0:01:38.8]}
12... e4 {[%clk 0:02:23.1]} 13. Nd4 {[%clk 0:01:35.1]} 13... Nbd5 {[%clk
0:02:21.3]} 14. a5 {[%clk 0:01:30.7]} 14... c5 {[%clk 0:02:15.2]} 15. Nb5 {[%clk
0:01:26.1]} 15... Bg4 {[%clk 0:02:08.4]} 16. Re1 {[%clk 0:01:17.3]} 16... Nb4
{[%clk 0:02:00.3]} 17. Qb2 {[%clk 0:01:15.2]} 17... Qd7 {[%clk 0:01:58.2]} 18.
a3 {[%clk 0:01:04.5]} 18... Nd3 {[%clk 0:01:39.4]} 19. exd3 {[%clk 0:01:00.1]}
19... exd3 {[%clk 0:01:40.3]} 20. Re3 {[%clk 0:00:59.3]} 20... Nd5 {[%clk
0:01:36]} 21. Qa2 {[%clk 0:00:32.8]} 21... Nxe3 {[%clk 0:01:34.7]} 22. dxe3
{[%clk 0:00:33]} 22... Rad8 {[%clk 0:00:42.1]} 23. Bd2 {[%clk 0:00:32.2]} 23...
Be6 {[%clk 0:00:41.9]} 24. Qb2 {[%clk 0:00:29.4]} 24... b6 {[%clk 0:00:39.4]}
25. axb6 {[%clk 0:00:25.1]} 25... axb6 {[%clk 0:00:40.3]} 26. Nc3 {[%clk
0:00:25]} 26... Rb8 {[%clk 0:00:40.4]} 27. Qb5 {[%clk 0:00:18.7]} 27... Qd6
{[%clk 0:00:37.7]} 28. Ne4 {[%clk 0:00:14.8]} 28... Qd8 {[%clk 0:00:37.7]} 29.
Qc6 {[%clk 0:00:13.8]} 29... Kh8 {[%clk 0:00:34.2]} 30. Qd6 {[%clk 0:00:11.7]}
30... Qc8 {[%clk 0:00:33.5]} 31. Bc3 {[%clk 0:00:11.4]} 31... Bf5 {[%clk
0:00:27]} 32. Ng5 {[%clk 0:00:10.5]} 32... Bg6 {[%clk 0:00:15.1]} 33. Rxb6
{[%clk 0:00:08.3]} 33... Rxb6 {[%clk 0:00:14.5]} 34. Qxb6 {[%clk 0:00:08.3]}
34... Qg4 {[%clk 0:00:11.2]} 35. Qxc5 {[%clk 0:00:07.2]} 35... Qd1+ {[%clk
0:00:10.1]} 36. Bf1 {[%clk 0:00:07.3]} 36... h6 {[%clk 0:00:09]} 37. Qd4 {[%clk
0:00:07.2]} 37... f6 {[%clk 0:00:08]} 38. Nf3 {[%clk 0:00:07.1]} 38... Qxf3
{[%clk 0:00:07.2]} 39. h4 {[%clk 0:00:06.9]} 39... Be4 {[%clk 0:00:07.1]} 40.
Bxd3 {[%clk 0:00:01.8]} 40... Qg2# {[%clk 0:00:06.6]} 0-1

[Event "*** SCC Grand Prix: Titled Tuesday Blitz"]
[Site "Chess.com"]
[Date "2020.06.23"]
[Round "1"]
[White "FedaMaster"]
[Black "Quiet_Desperation"]
[Result "1-0"]
[WhiteElo "2478"]
[BlackElo "1924"]
[TimeControl "180+1"]
[EndTime "10:07:39 PDT"]
[Termination "FedaMaster won by resignation"]

1. e4 {[%clk 0:03:00.6]} 1... Nc6 {[%clk 0:02:56.8]} 2. Bb5 {[%clk 0:02:57.9]}
2... d6 {[%clk 0:02:53.8]} 3. d4 {[%clk 0:02:56.1]} 3... a6 {[%clk 0:02:53.7]}
4. Bc4 {[%clk 0:02:48.2]} 4... g6 {[%clk 0:02:49.8]} 5. Nf3 {[%clk 0:02:34.7]}
5... Bg7 {[%clk 0:02:49.9]} 6. h3 {[%clk 0:02:30]} 6... Nf6 {[%clk 0:02:49.3]}
7. Qe2 {[%clk 0:02:27.7]} 7... O-O {[%clk 0:02:49]} 8. e5 {[%clk 0:02:10.5]}
8... Ne8 {[%clk 0:02:32.6]} 9. O-O {[%clk 0:01:59.5]} 9... h6 {[%clk 0:02:12.8]}
10. Bf4 {[%clk 0:01:37]} 10... d5 {[%clk 0:01:50.1]} 11. Bb3 {[%clk 0:01:30.6]}
11... Na5 {[%clk 0:01:46.2]} 12. c4 {[%clk 0:01:06.7]} 12... Nxb3 {[%clk
0:01:39.9]} 13. axb3 {[%clk 0:01:06.6]} 13... c6 {[%clk 0:01:34.2]} 14. Nc3
{[%clk 0:01:06.3]} 14... Nc7 {[%clk 0:01:34]} 15. Rfd1 {[%clk 0:00:56.3]} 15...
Be6 {[%clk 0:01:31.5]} 16. Na4 {[%clk 0:00:54.2]} 16... Rb8 {[%clk 0:01:10.8]}
17. Nc5 {[%clk 0:00:47.8]} 17... Qc8 {[%clk 0:01:05.5]} 18. Be3 {[%clk
0:00:43.7]} 18... b6 {[%clk 0:01:01.1]} 19. Nxe6 {[%clk 0:00:42]} 19... Qxe6
{[%clk 0:01:00.9]} 20. cxd5 {[%clk 0:00:37.8]} 20... Qxd5 {[%clk 0:00:59.7]} 21.
Rac1 {[%clk 0:00:34.4]} 21... Rfc8 {[%clk 0:00:54.9]} 22. Qc4 {[%clk 0:00:27.1]}
22... Qxc4 {[%clk 0:00:45.7]} 23. bxc4 {[%clk 0:00:17.7]} 23... e6 {[%clk
0:00:46]} 24. Nd2 {[%clk 0:00:16.4]} 24... b5 {[%clk 0:00:45.8]} 25. b3 {[%clk
0:00:11.7]} 25... Kh7 {[%clk 0:00:42.8]} 26. Ne4 {[%clk 0:00:11.5]} 26... Rd8
{[%clk 0:00:35]} 27. Nd6 {[%clk 0:00:08.2]} 27... Rd7 {[%clk 0:00:34]} 28. Ne4
{[%clk 0:00:05.9]} 28... b4 {[%clk 0:00:29.5]} 29. Nc5 {[%clk 0:00:04.6]} 29...
Rdd8 {[%clk 0:00:26.8]} 30. Ra1 {[%clk 0:00:05.5]} 30... Ra8 {[%clk 0:00:27.2]}
31. Ra4 {[%clk 0:00:05.1]} 31... Bf8 {[%clk 0:00:24.4]} 32. Nd3 {[%clk
0:00:03.8]} 32... c5 {[%clk 0:00:19.8]} 33. dxc5 {[%clk 0:00:02.2]} 33... Rd7
{[%clk 0:00:16.6]} 34. Kf1 {[%clk 0:00:02.2]} 34... Rad8 {[%clk 0:00:16.4]} 35.
Ke2 {[%clk 0:00:03.1]} 35... Be7 {[%clk 0:00:14.4]} 36. Nb2 {[%clk 0:00:03.2]}
36... Rxd1 {[%clk 0:00:13.9]} 37. Nxd1 {[%clk 0:00:04.1]} 37... f6 {[%clk
0:00:14.3]} 38. exf6 {[%clk 0:00:03.5]} 38... Bxf6 {[%clk 0:00:15.2]} 39. Rxb4
{[%clk 0:00:03]} 39... g5 {[%clk 0:00:13.9]} 40. Rb7 {[%clk 0:00:03.3]} 40...
Rd7 {[%clk 0:00:14.3]} 41. c6 {[%clk 0:00:03.8]} 41... Re7 {[%clk 0:00:14.2]}
42. Bb6 {[%clk 0:00:04.4]} 42... Ne8 {[%clk 0:00:11.9]} 43. Rxe7+ {[%clk
0:00:03.3]} 43... Bxe7 {[%clk 0:00:12.8]} 44. c7 {[%clk 0:00:03.7]} 44... Nd6
{[%clk 0:00:11.4]} 45. Bc5 {[%clk 0:00:04.1]} 45... Nc8 {[%clk 0:00:12.3]} 46.
Bxe7 {[%clk 0:00:04.3]} 46... Nxe7 {[%clk 0:00:13.1]} 47. Nc3 {[%clk 0:00:04.1]}
47... Kg6 {[%clk 0:00:14]} 48. Na4 {[%clk 0:00:04.3]} 48... Kf7 {[%clk
0:00:14.5]} 49. Nb6 {[%clk 0:00:04.9]} 49... Ke8 {[%clk 0:00:15.2]} 50. c8=Q+
{[%clk 0:00:05.8]} 1-0

[Event "*** SCC Grand Prix: Titled Tuesday Blitz"]
[Site "Chess.com"]
[Date "2020.06.23"]
[Round "1"]
[White "Rakhmanov_Aleksandr"]
[Black "reutik"]
[Result "1-0"]
[WhiteElo "2819"]
[BlackElo "2415"]
[TimeControl "180+1"]
[EndTime "10:07:40 PDT"]
[Termination "Rakhmanov_Aleksandr won by resignation"]

1. Nf3 {[%clk 0:02:58.7]} 1... d5 {[%clk 0:02:59.8]} 2. g3 {[%clk 0:02:59.6]}
2... c6 {[%clk 0:03:00.2]} 3. Bg2 {[%clk 0:02:58.2]} 3... Nf6 {[%clk 0:03:00.5]}
4. d4 {[%clk 0:02:58.4]} 4... Bf5 {[%clk 0:03:00.5]} 5. c4 {[%clk 0:02:58.6]}
5... e6 {[%clk 0:03:00.9]} 6. Nc3 {[%clk 0:02:59.1]} 6... Nbd7 {[%clk 0:03:00]}
7. Nh4 {[%clk 0:02:58.4]} 7... Bg4 {[%clk 0:02:58.2]} 8. h3 {[%clk 0:02:57.8]}
8... Bh5 {[%clk 0:02:58.2]} 9. g4 {[%clk 0:02:58.2]} 9... Bg6 {[%clk 0:02:58.3]}
10. Qb3 {[%clk 0:02:54.6]} 10... Qb6 {[%clk 0:02:55.1]} 11. Nxg6 {[%clk
0:02:54.2]} 11... hxg6 {[%clk 0:02:54.9]} 12. c5 {[%clk 0:02:54.8]} 12... Qxb3
{[%clk 0:02:52.2]} 13. axb3 {[%clk 0:02:55.7]} 13... e5 {[%clk 0:02:51.1]} 14.
e3 {[%clk 0:02:55.5]} 14... a6 {[%clk 0:02:49.6]} 15. b4 {[%clk 0:02:55.3]}
15... Rc8 {[%clk 0:02:44.3]} 16. f4 {[%clk 0:02:50.6]} 16... e4 {[%clk
0:02:39.6]} 17. Bd2 {[%clk 0:02:42.9]} 17... Be7 {[%clk 0:02:39.8]} 18. Ke2
{[%clk 0:02:41.9]} 18... Kd8 {[%clk 0:02:28.9]} 19. Be1 {[%clk 0:02:40.5]} 19...
Ne8 {[%clk 0:02:27.9]} 20. h4 {[%clk 0:02:36.9]} 20... f5 {[%clk 0:02:10.2]} 21.
h5 {[%clk 0:02:33.9]} 21... fxg4 {[%clk 0:02:07.1]} 22. hxg6 {[%clk 0:02:32.6]}
22... Rxh1 {[%clk 0:02:06.5]} 23. Bxh1 {[%clk 0:02:33.5]} 23... Nf8 {[%clk
0:01:58.5]} 24. f5 {[%clk 0:02:30]} 24... Bg5 {[%clk 0:01:55.7]} 25. Bg3 {[%clk
0:02:22.7]} 25... Nd7 {[%clk 0:01:49.7]} 26. Bg2 {[%clk 0:02:21.5]} 26... Ke7
{[%clk 0:01:46.3]} 27. Be5 {[%clk 0:01:59.1]} 27... Nef6 {[%clk 0:01:35.3]} 28.
Rh1 {[%clk 0:01:58.9]} 28... Rg8 {[%clk 0:01:30.1]} 29. Bd6+ {[%clk 0:01:55.5]}
29... Kd8 {[%clk 0:01:28.9]} 30. Nd1 {[%clk 0:01:56.1]} 30... Ne8 {[%clk
0:01:26.4]} 31. Bg3 {[%clk 0:01:46]} 31... Rf8 {[%clk 0:01:26.3]} 32. Rh5 {[%clk
0:01:46.4]} 32... Bh6 {[%clk 0:01:25.3]} 33. Nf2 {[%clk 0:01:42.7]} 33... Nef6
{[%clk 0:01:23]} 34. Rh1 {[%clk 0:01:32]} 34... Kc8 {[%clk 0:01:23]} 35. Bd6
{[%clk 0:01:29.8]} 35... Re8 {[%clk 0:01:23]} 36. Kd2 {[%clk 0:01:20]} 36... Rh8
{[%clk 0:01:20.8]} 37. Bf1 {[%clk 0:01:16.5]} 37... Rg8 {[%clk 0:01:09.6]} 38.
Be2 {[%clk 0:01:15.4]} 38... Ne8 {[%clk 0:01:09.3]} 39. Nxg4 {[%clk 0:01:11.3]}
39... Nxd6 {[%clk 0:01:05.3]} 40. Nxh6 {[%clk 0:01:10.6]} 40... gxh6 {[%clk
0:01:02.4]} 41. cxd6 {[%clk 0:01:09.6]} 41... Nf6 {[%clk 0:01:01.2]} 42. Rxh6
{[%clk 0:01:04.8]} 42... Kd7 {[%clk 0:01:01.3]} 43. Ke1 {[%clk 0:01:04.9]} 43...
Kxd6 {[%clk 0:01:00.6]} 44. Kf2 {[%clk 0:01:05.4]} 44... Ke7 {[%clk 0:00:59.1]}
45. Kg3 {[%clk 0:01:05.8]} 45... Kf8 {[%clk 0:00:58.8]} 46. Kf4 {[%clk
0:01:05.7]} 46... Kg7 {[%clk 0:00:58.8]} 47. Rh1 {[%clk 0:01:06.3]} 47... Ra8
{[%clk 0:00:54.4]} 48. Ra1 {[%clk 0:01:05.7]} 48... Rh8 {[%clk 0:00:53.1]} 49.
b5 {[%clk 0:01:04.9]} 49... cxb5 {[%clk 0:00:52.4]} 50. Rc1 {[%clk 0:01:03.9]}
50... Rd8 {[%clk 0:00:47.3]} 51. Ke5 {[%clk 0:00:59.2]} 51... Re8+ {[%clk
0:00:46.3]} 52. Kd6 {[%clk 0:00:59.2]} 52... Rd8+ {[%clk 0:00:45.9]} 53. Ke7
{[%clk 0:00:58.1]} 53... Rd7+ {[%clk 0:00:45]} 54. Ke6 {[%clk 0:00:58.1]} 54...
b6 {[%clk 0:00:39.2]} 55. Rc8 {[%clk 0:00:43.8]} 55... Rb7 {[%clk 0:00:37.9]}
56. Rc6 {[%clk 0:00:41.1]} 56... b4 {[%clk 0:00:37.3]} 57. Bxa6 {[%clk
0:00:40.4]} 57... Ra7 {[%clk 0:00:36.6]} 58. Rxb6 {[%clk 0:00:39.3]} 58... Ng4
{[%clk 0:00:34.8]} 59. Rb7+ {[%clk 0:00:35.9]} 59... Rxb7 {[%clk 0:00:34.7]} 60.
Bxb7 {[%clk 0:00:36.8]} 1-0

[Event "*** SCC Grand Prix: Titled Tuesday Blitz"]
[Site "Chess.com"]
[Date "2020.06.23"]
[Round "1"]
[White "kushagramohan"]
[Black "WelshTiger"]
[Result "1-0"]
[WhiteElo "2719"]
[BlackElo "2373"]
[TimeControl "180+1"]
[EndTime "10:07:40 PDT"]
[Termination "kushagramohan won by resignation"]

1. e4 {[%clk 0:03:00.9]} 1... c5 {[%clk 0:02:59.9]} 2. Nf3 {[%clk 0:02:59.6]}
2... Nc6 {[%clk 0:03:00.6]} 3. d4 {[%clk 0:02:59]} 3... cxd4 {[%clk 0:03:01.5]}
4. Nxd4 {[%clk 0:02:59.9]} 4... Nf6 {[%clk 0:03:01.8]} 5. Nc3 {[%clk 0:03:00]}
5... d6 {[%clk 0:03:02.4]} 6. Bg5 {[%clk 0:02:59.5]} 6... Bd7 {[%clk 0:03:02.4]}
7. Qd2 {[%clk 0:02:59.3]} 7... Rc8 {[%clk 0:03:02.5]} 8. O-O-O {[%clk
0:02:59.7]} 8... Nxd4 {[%clk 0:03:02.3]} 9. Qxd4 {[%clk 0:02:59.4]} 9... Qa5
{[%clk 0:03:03]} 10. f4 {[%clk 0:02:59.4]} 10... Rxc3 {[%clk 0:03:02.1]} 11.
bxc3 {[%clk 0:02:56.4]} 11... e5 {[%clk 0:03:01.2]} 12. Qb4 {[%clk 0:02:52.5]}
12... Qxb4 {[%clk 0:02:58.9]} 13. cxb4 {[%clk 0:02:52.4]} 13... Nxe4 {[%clk
0:02:59.8]} 14. Re1 {[%clk 0:02:45]} 14... Nxg5 {[%clk 0:02:58.2]} 15. fxg5
{[%clk 0:02:45.9]} 15... Be7 {[%clk 0:02:50.5]} 16. h4 {[%clk 0:02:45]} 16... h6
{[%clk 0:02:39.6]} 17. gxh6 {[%clk 0:02:26.1]} 17... Rxh6 {[%clk 0:02:39.1]} 18.
h5 {[%clk 0:02:26.9]} 18... f5 {[%clk 0:02:31.1]} 19. Be2 {[%clk 0:02:24.2]}
19... Bc6 {[%clk 0:02:20.4]} 20. Bf3 {[%clk 0:02:13.4]} 20... e4 {[%clk
0:02:20.3]} 21. Be2 {[%clk 0:02:14]} 21... Bf6 {[%clk 0:02:16.2]} 22. a3 {[%clk
0:02:12.8]} 22... f4 {[%clk 0:02:05.1]} 23. Ref1 {[%clk 0:02:09.4]} 23... Bg5
{[%clk 0:01:58.8]} 24. Kb1 {[%clk 0:02:06.7]} 24... d5 {[%clk 0:01:58.9]} 25. c3
{[%clk 0:02:05.6]} 25... Bd7 {[%clk 0:01:46.6]} 26. Kb2 {[%clk 0:02:01.4]} 26...
Ke7 {[%clk 0:01:44.6]} 27. Rd1 {[%clk 0:01:58.9]} 27... Be6 {[%clk 0:01:43]} 28.
b5 {[%clk 0:01:51.3]} 28... b6 {[%clk 0:01:40.3]} 29. Rd4 {[%clk 0:01:50.1]}
29... Bf6 {[%clk 0:01:37.5]} 30. Ra4 {[%clk 0:01:49.9]} 30... Kd6 {[%clk
0:01:25.5]} 31. Rd1 {[%clk 0:01:45.6]} 31... Be5 {[%clk 0:01:16.9]} 32. Rxe4
{[%clk 0:01:40.5]} 32... Bf5 {[%clk 0:01:00]} 33. Ra4 {[%clk 0:01:35.9]} 33...
Kc5 {[%clk 0:00:55.3]} 34. Rxa7 {[%clk 0:01:28.4]} 34... Re6 {[%clk 0:00:54.2]}
35. Bf3 {[%clk 0:00:56.5]} 35... Be4 {[%clk 0:00:54.2]} 36. a4 {[%clk 0:00:56]}
36... Bf6 {[%clk 0:00:47.2]} 37. Rc7+ {[%clk 0:00:53.2]} 37... Kd6 {[%clk
0:00:43.5]} 38. Rc6+ {[%clk 0:00:53.3]} 38... Ke5 {[%clk 0:00:43.3]} 39. Rxe6+
{[%clk 0:00:50]} 39... Kxe6 {[%clk 0:00:43.8]} 40. Kb3 {[%clk 0:00:50.1]} 40...
Be7 {[%clk 0:00:38.1]} 41. Re1 {[%clk 0:00:40.6]} 41... Ke5 {[%clk 0:00:37.7]}
42. c4 {[%clk 0:00:37.5]} 42... Kd4 {[%clk 0:00:29.2]} 43. cxd5 {[%clk
0:00:34.3]} 43... Bxf3 {[%clk 0:00:27.9]} 44. gxf3 {[%clk 0:00:33]} 44... Bd6
{[%clk 0:00:28.2]} 45. Re4+ {[%clk 0:00:29.3]} 45... Kxd5 {[%clk 0:00:27.7]} 46.
Kc2 {[%clk 0:00:28.8]} 46... Kc5 {[%clk 0:00:20.2]} 47. Kd3 {[%clk 0:00:28.4]}
47... Kd5 {[%clk 0:00:20.3]} 48. Re8 {[%clk 0:00:22.9]} 48... Kc5 {[%clk
0:00:18.4]} 49. Rg8 {[%clk 0:00:23]} 49... Be5 {[%clk 0:00:17.6]} 50. Ke4 {[%clk
0:00:23.6]} 50... Bf6 {[%clk 0:00:17.1]} 51. Kxf4 {[%clk 0:00:23.8]} 51... Kb4
{[%clk 0:00:17.7]} 52. Ra8 {[%clk 0:00:24.3]} 1-0

[Event "*** SCC Grand Prix: Titled Tuesday Blitz"]
[Site "Chess.com"]
[Date "2020.06.23"]
[Round "1"]
[White "MikeSailer"]
[Black "Nafania1"]
[Result "0-1"]
[WhiteElo "2103"]
[BlackElo "2511"]
[TimeControl "180+1"]
[EndTime "10:07:40 PDT"]
[Termination "Nafania1 won by checkmate"]

1. d4 {[%clk 0:03:00.9]} 1... Nf6 {[%clk 0:02:58.8]} 2. Nf3 {[%clk 0:03:01]}
2... e6 {[%clk 0:02:58.6]} 3. Bf4 {[%clk 0:03:01.2]} 3... c5 {[%clk 0:02:58.3]}
4. e3 {[%clk 0:03:01.3]} 4... Nc6 {[%clk 0:02:58.2]} 5. c3 {[%clk 0:02:58.9]}
5... Nh5 {[%clk 0:02:57.8]} 6. Bg5 {[%clk 0:02:51.4]} 6... Qb6 {[%clk
0:02:56.1]} 7. Qb3 {[%clk 0:02:45.7]} 7... h6 {[%clk 0:02:52.7]} 8. Bh4 {[%clk
0:02:40.8]} 8... g5 {[%clk 0:02:52.9]} 9. Bg3 {[%clk 0:02:40.9]} 9... Nxg3
{[%clk 0:02:53.1]} 10. hxg3 {[%clk 0:02:41.1]} 10... Bg7 {[%clk 0:02:51.7]} 11.
Nbd2 {[%clk 0:02:40.1]} 11... d5 {[%clk 0:02:51.6]} 12. Be2 {[%clk 0:02:33.3]}
12... Bd7 {[%clk 0:02:48.7]} 13. dxc5 {[%clk 0:02:22]} 13... Qxc5 {[%clk
0:02:48.5]} 14. Nd4 {[%clk 0:02:20.4]} 14... O-O-O {[%clk 0:02:18]} 15. O-O-O
{[%clk 0:02:06.6]} 15... f5 {[%clk 0:02:04.8]} 16. Nxc6 {[%clk 0:01:55.9]} 16...
Bxc6 {[%clk 0:02:00.2]} 17. Nf3 {[%clk 0:01:50.3]} 17... e5 {[%clk 0:01:57.8]}
18. Kb1 {[%clk 0:01:47.3]} 18... Kb8 {[%clk 0:01:55.3]} 19. Rc1 {[%clk
0:01:40.5]} 19... Rhe8 {[%clk 0:01:42.5]} 20. Rhd1 {[%clk 0:01:39.9]} 20... Qa5
{[%clk 0:01:41.3]} 21. Qc2 {[%clk 0:01:18.8]} 21... Rf8 {[%clk 0:01:34.3]} 22.
Rd2 {[%clk 0:01:13.6]} 22... Ba4 {[%clk 0:01:11.5]} 23. b3 {[%clk 0:01:13.1]}
23... Bc6 {[%clk 0:01:11.5]} 24. Ne1 {[%clk 0:00:51.9]} 24... e4 {[%clk
0:01:10.6]} 25. c4 {[%clk 0:00:39.2]} 25... d4 {[%clk 0:01:07]} 26. exd4 {[%clk
0:00:38.1]} 26... Bxd4 {[%clk 0:00:59.5]} 27. Rcd1 {[%clk 0:00:38.8]} 27... Bxf2
{[%clk 0:00:48.7]} 28. Rxd8+ {[%clk 0:00:37.9]} 28... Rxd8 {[%clk 0:00:48.3]}
29. Rxd8+ {[%clk 0:00:38.1]} 29... Qxd8 {[%clk 0:00:48.4]} 30. Qc3 {[%clk
0:00:26.5]} 30... Qd4 {[%clk 0:00:42.9]} 31. Qa5 {[%clk 0:00:23.9]} 31... a6
{[%clk 0:00:27.8]} 32. Nc2 {[%clk 0:00:19.6]} 32... Qc5 {[%clk 0:00:27.6]} 33.
Qd8+ {[%clk 0:00:18.3]} 33... Ka7 {[%clk 0:00:27.4]} 34. Bh5 {[%clk 0:00:14.6]}
34... Bxg3 {[%clk 0:00:21.7]} 35. Bf7 {[%clk 0:00:14.4]} 35... Be5 {[%clk
0:00:20.4]} 36. Qd1 {[%clk 0:00:10.7]} 36... e3 {[%clk 0:00:18.2]} 37. Bd5
{[%clk 0:00:10.1]} 37... f4 {[%clk 0:00:17.5]} 38. Bxc6 {[%clk 0:00:10]} 38...
Qxc6 {[%clk 0:00:17.9]} 39. Ne1 {[%clk 0:00:06.3]} 39... Qe4+ {[%clk 0:00:17.5]}
40. Kc1 {[%clk 0:00:05.4]} 40... Qd4 {[%clk 0:00:16.4]} 41. Qe2 {[%clk
0:00:04.2]} 41... Qa1+ {[%clk 0:00:15.8]} 42. Kc2 {[%clk 0:00:04.3]} 42... Qb2+
{[%clk 0:00:15.6]} 43. Kd1 {[%clk 0:00:04.1]} 43... Qb1# {[%clk 0:00:16.1]} 0-1